fUSD/lending_fUSD_20240528
["ID","MTS","AMOUNT","RATE_DAILY","PERIOD"]
[328122116,1716903046252,-3980.89736927,0.00013,2]
[328122117,1716903046263,-1603.20601043,0.00013,2]
[328122118,1716903046275,-717.86841451,0.00013,2]
[328122119,1716903046286,-1284.1755862,0.00013,2]
[328122120,1716903046298,-534.16021158,0.00013,2]
[328122121,1716903046309,-462.1772013,0.00013,2]
[328122122,1716903046370,-2741.43912424,0.00013,2]
[328122123,1716903046382,-626.19149373,0.00013,2]
[328122124,1716903046393,-459.93062853,0.00013,2]
[328122125,1716903046405,-1428.50005517,0.00013,2]
[328122190,1716903068175,150.0,0.00010169,2]
[328122191,1716903068198,150.0,0.00010169,2]
[328122192,1716903068227,3085.49202329,0.00010169,2]
[328122193,1716903081918,6209.86774265,0.0003,120]
[328122197,1716903467236,150.0,9.811e-05,2]
[328122198,1716903467261,150.0,9.811e-05,2]
[328122199,1716903467286,150.0,9.811e-05,2]
[328122200,1716903467310,150.0,9.811e-05,2]
[328122201,1716903467342,54.95,9.811e-05,2]
[328122202,1716903526974,150.0,9.811e-05,2]
[328122203,1716903526996,150.0,9.811e-05,2]
[328122204,1716903527019,150.0,9.811e-05,2]
[328122205,1716903527042,150.0,9.811e-05,2]
[328122206,1716903527065,150.0,9.811e-05,2]
[328122207,1716903527095,131740.83069355,9.811e-05,2]
[328122208,1716903527120,2631.5,9.811e-05,2]
[328122209,1716903527153,-150.0,9.811e-05,2]
[328122210,1716903527288,-150.0,9.811e-05,2]
[328122211,1716903527333,-150.0,9.811e-05,2]
[328122212,1716903527412,-150.0,9.811e-05,2]
[328122213,1716903527521,-150.0,9.811e-05,2]
[328122214,1716903527566,-150.0,9.811e-05,2]
[328122215,1716903527663,-150.0,9.811e-05,2]
[328122216,1716903527949,-150.0,9.811e-05,2]
[328122217,1716903528087,-150.0,9.811e-05,2]
[328122218,1716903528174,-150.0,9.811e-05,2]
[328122219,1716903528230,-150.0,9.811e-05,2]
[328122220,1716903528288,-150.0,9.811e-05,2]
[328122221,1716903528355,-150.0,9.811e-05,2]
[328122222,1716903528424,-150.0,9.811e-05,2]
[328122223,1716903528497,-150.0,9.811e-05,2]
[328122224,1716903528565,-150.0,9.811e-05,2]
[328122225,1716903528687,-150.0,9.811e-05,2]
[328122226,1716903528765,-150.0,9.811e-05,2]
[328122227,1716903528851,-150.0,9.811e-05,2]
[328122228,1716903528952,-150.0,9.811e-05,2]
[328122229,1716903529027,-150.0,9.811e-05,2]
[328122230,1716903529124,-150.0,9.811e-05,2]
[328122231,1716903529257,-150.0,9.811e-05,2]
[328122232,1716903529460,-150.0,9.811e-05,2]
[328122233,1716903529526,-150.0,9.811e-05,2]
[328122234,1716903529587,-150.0,9.811e-05,2]
[328122235,1716903529670,-150.0,9.811e-05,2]
[328122236,1716903529734,-256.00055761,9.811e-05,2]
[328122237,1716903529802,-150.0,9.811e-05,2]
[328122238,1716903529879,-150.0,9.811e-05,2]
[328122239,1716903533230,-150.0,9.811e-05,2]
[328122240,1716903533870,-150.0,9.811e-05,2]
[328122241,1716903534696,-150.0,9.811e-05,2]
[328122242,1716903536529,-150.0,9.811e-05,2]
[328122243,1716903537427,-150.0,9.811e-05,2]
[328122244,1716903537977,-150.0,9.811e-05,2]
[328122245,1716903538523,-150.0,9.811e-05,2]
[328122246,1716903539696,-150.0,9.81e-05,2]
[328122247,1716903549943,150.0,7.358e-05,2]
[328122248,1716903549966,150.0,7.358e-05,2]
[328122249,1716903549988,180.43944239,7.358e-05,2]
[328122250,1716903550015,119.56055761,7.358e-05,2]
[328122251,1716903577810,956.57769128,6.99e-05,2]
[328122252,1716903593816,504.32876579,6.99e-05,2]
[328122253,1716903599483,17169.53298532,7.358e-05,2]
[328122254,1716903608994,-81109.0,7.358e-05,2]
[328122365,1716904209766,150.0,0.00012999,7]
[328122375,1716904232226,-2331.50342214,5.449e-05,2]
[328122376,1716904232236,-536.52210812,5.449e-05,2]
[328122377,1716904232245,-3288.60966713,5.449e-05,2]
[328122378,1716904232254,-517.03487054,5.45e-05,2]
[328122379,1716904232263,-423.96701383,5.45e-05,2]
[328122380,1716904232273,-452.42025595,5.451e-05,2]
[328122381,1716904232282,-1216.16566358,5.452e-05,2]
[328122382,1716904232292,-155.0,5.453e-05,2]
[328122383,1716904232301,-406.61896149,5.453e-05,2]
[328122384,1716904232310,-2225.38289457,5.453e-05,2]
[328122385,1716904232320,-5570.7220395,5.453e-05,2]
[328122386,1716904232329,-150.0,5.463e-05,2]
[328122387,1716904232338,-150.0,5.463e-05,2]
[328122388,1716904232348,-150.0,5.479e-05,2]
[328122389,1716904232358,-4461.67638772,5.517e-05,2]
[328122390,1716904232367,-2550.07792439,5.519e-05,2]
[328122391,1716904232377,-895.94231786,6.988e-05,2]
[328122392,1716904232386,-344.8307424,7.356e-05,2]
[328122393,1716904232396,-526.60043023,7.356e-05,2]
[328122394,1716904232405,-4282.56969523,7.356e-05,2]
[328122395,1716904232416,-7526.23404168,7.356e-05,2]
[328122396,1716904232425,-155.0,7.356e-05,2]
[328122397,1716904232435,-410.22574927,7.356e-05,2]
[328122398,1716904232445,-782.79118894,7.356e-05,2]
[328122399,1716904232462,-1382.70872343,7.356e-05,2]
[328122400,1716904232471,-1387.20873514,7.356e-05,2]
[328122401,1716904232480,-263.32579252,7.356e-05,2]
[328122402,1716904232489,-155.0,7.356e-05,2]
[328122403,1716904232498,-1000.0,7.357e-05,2]
[328122404,1716904232508,-175708.11371742,7.358e-05,2]
[328122405,1716904232517,-1152.469679,8.178e-05,2]
[328122407,1716904232527,-664.99,8.219e-05,2]
[328122409,1716904232536,-904.0,8.219e-05,2]
[328122410,1716904232545,-23900.0,8.259e-05,2]
[328122411,1716904232555,-250.0,8.329e-05,2]
[328122412,1716904232564,-2279.95,8.39e-05,2]
[328122413,1716904232574,-200.0,8.674e-05,2]
[328122414,1716904232583,-870.9,8.818e-05,2]
[328122415,1716904232593,-904.0,9.247e-05,2]
[328122416,1716904232602,-181.51,9.506e-05,2]
[328122417,1716904232612,-3153.91,9.636e-05,2]
[328122418,1716904232622,-150.99,9.67e-05,2]
[328122419,1716904232631,-4410.76,9.67e-05,2]
[328122420,1716904232641,-499.99,9.67e-05,2]
[328122421,1716904232650,-250.0,9.739e-05,2]
[328122422,1716904232660,-164.58,9.759e-05,2]
[328122423,1716904232670,-167.29,9.892e-05,2]
[328122424,1716904232679,-3718.25,0.0001,2]
[328122425,1716904232688,-164.58,0.00010013,2]
[328122426,1716904232698,-1000.0,0.00010178,2]
[328122427,1716904232711,-164.58,0.00010268,2]
[328122428,1716904232720,-904.0,0.00010274,2]
[328122429,1716904232730,-664.99,0.00010403,2]
[328122430,1716904232739,-7058.69,0.00010959,2]
[328122431,1716904232749,-351.16,0.00010959,2]
[328122432,1716904232758,-292.63,0.00010959,2]
[328122433,1716904232768,-243.86,0.00010959,2]
[328122434,1716904232778,-203.22,0.00010959,2]
[328122435,1716904232787,-169.35,0.00010959,2]
[328122436,1716904232797,-846.77,0.00010959,2]
[328122437,1716904232807,-751.61833958,0.00011,2]
[328122438,1716904232816,-2279.95,0.0001113,2]
[328122439,1716904232826,-160.0,0.00011272,2]
[328122440,1716904232835,-904.0,0.00011301,2]
[328122441,1716904232845,-871.06,0.00011534,2]
[328122442,1716904232857,-155.25525676,0.00011698,2]
[328122443,1716904232870,-299.99,0.00011704,2]
[328122444,1716904232883,-999.99,0.00011729,2]
[328122445,1716904232896,-871.06,0.00011841,2]
[328122446,1716904232909,-416.21,0.00011841,2]
[328122447,1716904232921,-163.89,0.0001192,2]
[328122448,1716904232933,-3089.57,0.0001192,2]
[328122449,1716904232946,-416.21,0.00011941,2]
[328122450,1716904232962,-871.06,0.00011941,2]
[328122451,1716904232974,-1000.0,0.00012,2]
[328122452,1716904232987,-871.06,0.00012041,2]
[328122453,1716904232999,-416.21,0.00012041,2]
[328122454,1716904233012,-168.14,0.00012045,2]
[328122455,1716904233024,-1000.0,0.00012083,2]
[328122456,1716904233036,-150.0,0.00012315,2]
[328122457,1716904233049,-904.0,0.00012329,2]
[328122458,1716904233063,-872.13,0.00012341,2]
[328122459,1716904233076,-448.98,0.00012341,2]
[328122460,1716904233089,-169.13285556,0.00012348,2]
[328122461,1716904233101,-150.0,0.00012367,2]
[328122462,1716904233112,-871.06,0.00012493,2]
[328122463,1716904233123,-416.21,0.00012493,2]
[328122464,1716904233136,-416.21,0.00012493,2]
[328122465,1716904233148,-871.06,0.00012493,2]
[328122466,1716904233160,-871.06,0.00012493,2]
[328122467,1716904233173,-416.21,0.00012493,2]
[328122468,1716904233186,-871.06,0.00012493,2]
[328122469,1716904233198,-416.21,0.00012493,2]
[328122470,1716904233212,-416.21,0.00012493,2]
[328122471,1716904233223,-871.06,0.00012493,2]
[328122472,1716904233234,-938.4250106,0.00012541,2]
[328122473,1716904233245,-664.99,0.00012587,2]
[328122474,1716904233256,-1015.07282241,0.00012739,2]
[328122475,1716904233268,-2605.38794838,0.0001274,2]
[328122476,1716904233280,-3705.118,0.000129,2]
[328122477,1716904233292,-21528.4803,0.000129,2]
[328122478,1716904233304,-3338.41822866,0.000129,2]
[328122479,1716904233316,-151.96620541,0.000129,2]
[328122480,1716904233328,-159.86649369,0.000129,2]
[328122481,1716904233340,-4755.8055333,0.00012986,2]
[328122482,1716904233352,-776.3370468,0.00012986,2]
[328122483,1716904233365,-152.2528877,0.00012986,2]
[328122484,1716904233377,-172.66,0.00012989,2]
[328122485,1716904233390,-154.28,0.0001299,2]
[328122486,1716904233402,-154.28,0.0001299,2]
[328122487,1716904233413,-154.28,0.0001299,2]
[328122488,1716904233424,-154.28,0.0001299,2]
[328122489,1716904233434,-154.28,0.0001299,2]
[328122490,1716904233444,-4118.8300097,0.00012991,2]
[328122491,1716904233458,-670.9381897,0.00012991,2]
[328122492,1716904233470,-191.7161939,0.00012991,2]
[328122493,1716904233481,-154.28,0.00012991,2]
[328122494,1716904233493,-234.25383046,0.00012996,2]
[328122495,1716904233505,-299.84501484,0.00012996,2]
[328122496,1716904233516,-325.92527991,0.00012996,2]
[328122497,1716904233526,-155.0,0.00012996,2]
[328122498,1716904233538,-3576.8522125,0.00012996,2]
[328122499,1716904233549,-155.0,0.00012996,2]
[328122500,1716904233560,-2814.6457293,0.00012997,2]
[328122501,1716904233572,-155.20935502,0.00012997,2]
[328122502,1716904233584,-1258.86655938,0.00012998,2]
[328122503,1716904233595,-281.88330445,0.00012998,2]
[328122504,1716904233605,-7521.99858144,0.00012998,2]
[328122505,1716904233616,-1996.91763044,0.00012998,2]
[328122506,1716904233626,-623.47628621,0.00012998,2]
[328122507,1716904233637,-3090.67240736,0.00012998,2]
[328122508,1716904233648,-202.0868588,0.00012998,2]
[328122509,1716904233659,-156.2254641,0.00012998,2]
[328122510,1716904233670,-489.06715365,0.00012998,2]
[328122511,1716904233681,-156.82193563,0.00012998,2]
[328122512,1716904233692,-155.1408323,0.00012998,2]
[328122513,1716904233707,-155.81695383,0.00012998,2]
[328122514,1716904233718,-783.52135115,0.00012998,2]
[328122515,1716904233729,-221.41228681,0.00012998,2]
[328122516,1716904233740,-267.96249102,0.00012998,2]
[328122517,1716904233752,-1008.37073101,0.00012998,2]
[328122518,1716904233763,-2957.78310343,0.00012998,2]
[328122519,1716904233774,-246.96837777,0.00012998,2]
[328122520,1716904233785,-326.10422737,0.00012999,2]
[328122521,1716904233795,-16257.82722015,0.00012999,2]
[328122522,1716904233806,-150.0,0.00012999,2]
[328122523,1716904233817,-265345.28142724,0.00013,2]
[328122524,1716904234042,-443.7326138,0.00013,2]
[328122525,1716904234055,-4167.9,0.00013,2]
[328122526,1716904234100,-0.87626845,0.00013,2]
[328122527,1716904234176,-15598.99994,0.00013,2]
[328122528,1716904234189,-136405.99999988,0.00013,2]
[328122529,1716904234204,-545498.93278713,0.00013,2]
[328122530,1716904234217,-653.04,0.00013,2]
[328122534,1716904238248,-155.0,5.448e-05,2]
[328122535,1716904238258,-9559.40849976,5.45e-05,2]
[328122536,1716904238267,-299.23019146,0.00012999,2]
[328122537,1716904238277,-23971.51860878,0.00013,2]
[328122538,1716904238391,-5840.12283688,0.00013,2]
[328122539,1716904238403,-7740.3,0.00013,2]
[328122540,1716904238415,-39477.09705772,0.00013,2]
[328122541,1716904238886,-75146.12067736,0.00013,2]
[328122542,1716904238899,-7500.45083114,0.00013,2]
[328122543,1716904238919,-2216.18091443,0.00013,2]
[328122545,1716904238932,-1701.42867512,0.00013,2]
[328122548,1716904238955,-1499.999998,0.00013,2]
[328122614,1716904240929,-699.04076842,0.000129,2]
[328122616,1716904240940,-2567.44305593,0.00013,2]
[328122620,1716904241075,-6788.8,0.00013,2]
[328122621,1716904241087,-518.46451513,0.00013,2]
[328122622,1716904241769,-90217.33614439,0.00013,2]
[328122623,1716904241917,-10648.45612772,0.00013,2]
[328122624,1716904241937,-401.91663883,0.00013,2]
[328122625,1716904241950,-17279.30569006,0.00013,2]
[328122626,1716904241964,-3534.278748,0.00013,2]
[328122627,1716904242061,-65907.76545844,0.00013,2]
[328122628,1716904242997,300.0,0.000124,4]
[328122642,1716904243343,-3000.0,0.0001287,2]
[328122646,1716904243353,-93639.22398577,0.00013,2]
[328122650,1716904243365,-6131.88,0.00013,2]
[328122663,1716904243489,-5626.10907677,0.000129,2]
[328122665,1716904243498,-662.8800705,0.00013,2]
[328122667,1716904243510,-1643.56498822,0.00013,2]
[328122669,1716904243522,-31446.51559997,0.00013,2]
[328122683,1716904243642,-3300.4,0.00013,2]
[328122685,1716904243654,-538.25954287,0.00013,2]
[328122687,1716904243666,-4154.063776,0.00013,2]
[328122702,1716904243806,-433.15623405,0.00013,2]
[328122710,1716904244576,-16718.0,0.00013,2]
[328122711,1716904244588,-2950.74916208,0.00013,2]
[328122712,1716904244600,-11991.23841238,0.00013,2]
[328122713,1716904244612,-1192680.06738689,0.00013,2]
[328122714,1716904244622,-198.95,0.00013,2]
[328122715,1716904244632,-238.349,0.00013,2]
[328122716,1716904244641,-975.0,0.00013,2]
[328122717,1716904244651,-346.57302212,0.00013,2]
[328122718,1716904244662,-549.28468944,0.00013,2]
[328122719,1716904244672,-200.05144715,0.00013,2]
[328122720,1716904244682,-409.97178172,0.00013,2]
[328122721,1716904244693,-20229.281755,0.00013,2]
[328122722,1716904244705,-155.0,0.00013,2]
[328122723,1716904244714,-384.32332374,0.00013,2]
[328122724,1716904244724,-312.47783197,0.00013,2]
[328122725,1716904244734,-980121.76048628,0.00013,2]
[328122726,1716904245351,600.0,0.000125,4]
[328122748,1716904246460,-264.02025233,0.00012899,2]
[328122750,1716904246472,-252.60775123,0.00012899,2]
[328122752,1716904246482,-321.92543852,0.00012999,2]
[328122755,1716904246494,-691.03903521,0.00012999,2]
[328122757,1716904246507,-699.27,0.00012999,2]
[328122768,1716904246604,-1776.3344768,0.00012999,2]
[328122770,1716904246616,-1998.38733792,0.00012999,2]
[328122772,1716904246626,-305.74736862,0.00012999,2]
[328122773,1716904246638,-146.67288733,0.00012999,2]
[328122775,1716904246648,-204.59711641,0.00012999,2]
[328122777,1716904246658,-1296.01746161,0.00012999,2]
[328122784,1716904246768,-4269.8583446,0.00012999,2]
[328122786,1716904246777,-321.33083233,0.00012999,2]
[328122787,1716904246786,-2210.81082307,0.00013,2]
[328122789,1716904246798,-136169.99999997,0.00013,2]
[328122791,1716904246811,-896.01,0.00013,2]
[328122822,1716904247665,900.0,0.000126,4]
[328122823,1716904249608,1200.0,0.000127,4]
[328122824,1716904251716,1500.0,0.000128,4]
[328122825,1716904253823,300.0,0.000129,4]
[328122826,1716904258767,-150.0,9.749e-05,2]
[328122827,1716904259986,-150.0,9.749e-05,2]
[328122828,1716904260407,-150.0,9.749e-05,2]
[328122829,1716904262616,-150.0,9.749e-05,2]
[328122830,1716904263275,-150.0,9.749e-05,2]
[328122831,1716904264138,-150.0,9.749e-05,2]
[328122832,1716904266257,870.93362718,0.0003,120]
[328122839,1716904519401,-62.90287339,9.749e-05,2]
[328122840,1716904519423,-452.42025595,0.00011464,2]
[328122841,1716904519446,-164.06481566,0.00011465,2]
[328122842,1716904519469,-155.0,0.00011563,2]
[328122843,1716904519489,-4603.58438402,0.00011564,2]
[328122844,1716904519511,-150.0,0.00011565,2]
[328122845,1716904519530,-1834.0,0.00011567,2]
[328122846,1716904519552,-664.3516208,0.00011698,2]
[328122847,1716904519572,-1000.0,0.00012,3]
[328122848,1716904532552,150.0,0.00011568,2]
[328122849,1716904532575,150.0,0.00011568,2]
[328122850,1716904532596,150.0,0.00011568,2]
[328122851,1716904532618,27.60627371,0.00011568,2]
[328122852,1716904537427,-440.96,0.00012249,3]
[328122853,1716904537448,-150.13,0.00012629,2]
[328122854,1716904537471,-157.48529743,0.00012739,2]
[328122855,1716904537490,-2606.75150095,0.00012739,2]
[328122856,1716904537510,-333.64,0.00012831,2]
[328122857,1716904537530,-1358.805,0.00012896,2]
[328122858,1716904537551,-8865.9042518,0.000129,2]
[328122871,1716905153232,501.22,0.00017,7]
[328122872,1716905186611,500.0,0.000235,30]
[328122873,1716905217995,300.61,0.000181,10]
[328122875,1716905244139,500.0,0.000235,30]
[328122876,1716905434696,-155.0,9.785e-05,2]
[328122878,1716905434707,-649.34,9.786e-05,2]
[328122880,1716905434717,-327.60627371,0.00011568,2]
[328122881,1716905434727,-250.0,0.00011635,2]
[328122882,1716905434736,-23900.0,0.0001166,2]
[328122883,1716905434745,-919.36,0.00011662,2]
[328122884,1716905434759,-300.0,0.00011668,2]
[328122885,1716905434768,-163.89,0.00011686,2]
[328122886,1716905434778,-168.14,0.00011703,2]
[328122887,1716905434787,-6181.85,0.00011772,2]
[328122888,1716905434798,-499.99,0.00011772,2]
[328122889,1716905434807,-985.82,0.0001195,2]
[328122890,1716905434817,-999.99,0.0001195,2]
[328122891,1716905434826,-649.34,0.0001205,2]
[328122892,1716905434835,-150.0,0.00012372,2]
[328122893,1716905434844,-150.0,0.00012373,2]
[328122894,1716905434854,-150.0,0.00012377,2]
[328122895,1716905434864,-150.0,0.00012377,2]
[328122896,1716905434874,-150.0,0.00012396,2]
[328122897,1716905434883,-150.0,0.00012398,2]
[328122898,1716905434892,-150.0,0.00012406,2]
[328122899,1716905434902,-150.0,0.00012442,2]
[328122900,1716905434911,-150.0,0.00012444,2]
[328122901,1716905434924,-150.0,0.00012459,2]
[328122902,1716905434934,-150.0,0.00012488,2]
[328122903,1716905434943,-150.0,0.00012492,2]
[328122904,1716905434952,-150.0,0.00012494,2]
[328122905,1716905434961,-150.0,0.00012497,2]
[328122906,1716905434970,-150.0,0.00012498,2]
[328122907,1716905434979,-150.0,0.00012502,2]
[328122908,1716905434990,-150.0,0.00012515,2]
[328122909,1716905434999,-150.0,0.00012519,2]
[328122910,1716905435008,-150.0,0.00012529,2]
[328122911,1716905435017,-150.0,0.00012552,2]
[328122912,1716905435027,-150.0,0.0001259,2]
[328122913,1716905435036,-150.0,0.00012615,2]
[328122914,1716905435045,-150.0,0.00012635,2]
[328122915,1716905435055,-970.42788814,0.00012642,2]
[328122916,1716905435064,-1000.0,0.00012652,2]
[328122917,1716905435075,-211.98791872,0.00012869,2]
[328122918,1716905435085,-3000.0,0.0001287,2]
[328122919,1716905435095,-12320.6937,0.000129,2]
[328122920,1716905435105,-3122.37131272,0.000129,2]
[328122921,1716905435114,-187.75656952,0.000129,2]
[328122922,1716905435124,-3709.22662298,0.000129,2]
[328122923,1716905435136,-602.59396384,0.000129,2]
[328122924,1716905435146,-158.09012382,0.000129,2]
[328122925,1716905435156,-15819.88650636,0.000129,2]
[328122926,1716905435169,-172.66,0.00012945,2]
[328122927,1716905435178,-4598.76533425,0.00012986,2]
[328122928,1716905435188,-380.2783105,0.00012989,2]
[328122929,1716905435198,-1684.2608004,0.00012989,2]
[328122931,1716905435210,-193.5829729,0.00012989,2]
[328122932,1716905435220,-152.99,0.0001299,2]
[328122933,1716905435229,-152.99,0.0001299,2]
[328122934,1716905435239,-152.99,0.0001299,2]
[328122935,1716905435248,-152.99,0.0001299,2]
[328122936,1716905435258,-152.99,0.0001299,2]
[328122937,1716905435268,-152.99,0.0001299,2]
[328122938,1716905435278,-152.99,0.0001299,2]
[328122939,1716905435287,-152.99,0.0001299,2]
[328122940,1716905435296,-1291.36098914,0.00012998,2]
[328122941,1716905435306,-268.02586426,0.00012998,2]
[328122942,1716905435487,-155.0,0.00012998,2]
[328122943,1716905435497,-1229.07873002,0.00012998,2]
[328122944,1716905435507,-1246.26126998,0.00012998,2]
[328122945,1716905435516,-1217.42022837,0.00012999,2]
[328122946,1716905435527,-260.46885976,0.00012999,2]
[328122947,1716905435537,-3286.97999917,0.00012999,2]
[328122948,1716905435546,-2222.64085019,0.00012999,2]
[328122949,1716905435556,-423.24973175,0.00012999,2]
[328122950,1716905435566,-428.28701049,0.00012999,2]
[328122951,1716905435576,-1058.11598631,0.00012999,3]
[328122952,1716905435585,-3003.16774821,0.00012999,2]
[328122953,1716905435594,-423.02633773,0.00012999,2]
[328122954,1716905435604,-19234.3357337,0.00012999,2]
[328122955,1716905435613,-152.67259743,0.00012999,2]
[328122956,1716905435621,-298364.78459684,0.00013,2]
[328122957,1716905435651,-312.94642877,0.00013,2]
[328122958,1716905435662,-13642.51535786,0.00013,2]
[328122959,1716905435676,-341.24011699,0.00013,2]
[328122960,1716905435689,-308.88213437,0.00013,2]
[328122961,1716905435715,-3588.02125652,0.00013,2]
[328122962,1716905435726,-67760.0,0.00013,2]
[328122963,1716905435737,-13525.1894461,0.00013,2]
[328122964,1716905435748,-3743.35663518,0.00013,2]
[328122965,1716905435767,-3453.58111738,0.00013,2]
[328122966,1716905438743,-515.41385374,0.00013,2]
[328122967,1716905438755,-1513.35868036,0.00013,2]
[328122968,1716905438767,-7365.07682394,0.00013,2]
[328122969,1716905438778,-4712.18710168,0.00013,2]
[328122970,1716905438790,-2316.62264761,0.00013,2]
[328122971,1716905438801,-3005.26573871,0.00013,2]
[328122972,1716905438812,-997.54527062,0.00013,2]
[328122973,1716905438823,-988.70395018,0.00013,2]
[328122974,1716905438942,-789813.57941386,0.00013,2]
[328122975,1716905439455,-17511.63657538,0.00013,2]
[328122976,1716905439467,-19330.29999996,0.00013,2]
[328122977,1716905439478,-27127.7,0.00013,2]
[328122978,1716905441567,-967.85685002,0.00013,2]
[328122979,1716905442608,-6590.36093171,0.00013,2]
[328122981,1716905442620,-322.85018007,0.00013,2]
[328122982,1716905442631,-6901.43667458,0.00013,2]
[328122996,1716905443788,-1324.29662438,0.00013,2]
[328122997,1716905443800,-2366.14,0.00013,2]
[328122999,1716905444587,-6378.1308,0.00013,2]
[328123000,1716905444600,-33959.9236165,0.00013,2]
[328123001,1716905444612,-3782.8,0.00013,2]
[328123002,1716905444624,-506.363244,0.00013,2]
[328123004,1716905444670,-931.13278959,0.00013,2]
[328123005,1716905444684,-391.85072574,0.00013,2]
[328123007,1716905444695,-601.015996,0.00013,2]
[328123009,1716905444706,-346.11167018,0.00013,2]
[328123011,1716905444718,-725.77704884,0.00013,2]
[328123013,1716905444733,-1470.14303419,0.00013,2]
[328123014,1716905444744,-478.6711612,0.00013,2]
[328123015,1716905444755,-781.83159,0.00013,2]
[328123016,1716905444766,-3455.0316203,0.00013,2]
[328123017,1716905444778,-5437.84997135,0.00013,2]
[328123018,1716905444788,-15959.47114942,0.00013,2]
[328123019,1716905444800,-909.55279222,0.00013,2]
[328123020,1716905444811,-2085.2377664,0.00013,2]
[328123021,1716905444823,-785.44497192,0.00013,2]
[328123022,1716905444833,-7606.08,0.00013,2]
[328123023,1716905444844,-1966.690726,0.00013,2]
[328123024,1716905444855,-2989.73654873,0.00013,2]
[328123025,1716905445239,-10490.21449997,0.00013,2]
[328123026,1716905445252,-7292.85290267,0.00013,2]
[328123027,1716905445263,-69434.20152099,0.00013,2]
[328123028,1716905445275,-26289.6804,0.00013,2]
[328123057,1716905446563,-317.21991491,0.000129,2]
[328123059,1716905446573,-2935.85550133,0.00012999,2]
[328123061,1716905446583,-150.01,0.00012999,2]
[328123063,1716905446593,-397.91458381,0.00013,2]
[328123068,1716905446758,-1655.90047631,0.00013,2]
[328123069,1716905446779,-343928.24887577,0.00013,2]
[328123070,1716905446793,-4637.01806405,0.00013,2]
[328123071,1716905446841,-550449.84024101,0.00013,2]
[328123072,1716905446852,-1278.55706747,0.00013,2]
[328123073,1716905446863,-2674.5135068,0.00013,2]
[328123074,1716905446875,-663.29993463,0.00013,2]
[328123075,1716905446886,-2147.73696623,0.00013,2]
[328123076,1716905446897,-772.24049713,0.00013,2]
[328123077,1716905446908,-300.10550921,0.00013,2]
[328123078,1716905446920,-493.17867063,0.00013,2]
[328123079,1716905446935,-431.96925012,0.00013,2]
[328123080,1716905446947,-6784.1412,0.00013,2]
[328123081,1716905446959,-3440.50277744,0.00013,2]
[328123082,1716905447048,-895.4937,0.00013,2]
[328123083,1716905447060,-7409.5,0.00013,2]
[328123084,1716905447072,-465.97315059,0.00013,2]
[328123085,1716905447084,-509.65624248,0.00013,2]
[328123086,1716905447095,-1395.27464809,0.00013,2]
[328123087,1716905447133,-2210.75000075,0.00013,2]
[328123088,1716905447144,-678.83,0.00013,2]
[328123089,1716905447156,-2050.27652,0.00013,2]
[328123090,1716905447167,-269.78782145,0.00013,2]
[328123091,1716905447180,-6878.214984,0.00013,2]
[328123109,1716906024931,-155.0,9.935e-05,2]
[328123110,1716906024956,-326.36039384,9.936e-05,2]
[328123111,1716906024981,-784.71344393,9.937e-05,2]
[328123112,1716906025006,-2322.92616223,9.937e-05,2]
[328123116,1716906251963,300.0,0.000128,4]
[328123117,1716906254100,700.0,0.000129,4]
[328123118,1716906286979,500.0,0.000127,4]
[328123119,1716906289109,1100.0,0.000128,4]
[328123120,1716906291216,1700.0,0.000129,4]
[328123129,1716906453981,700.0,0.000127,4]
[328123130,1716906456086,1500.0,0.000128,4]
[328123131,1716906458187,2200.0,0.000129,4]
[328123142,1716906631832,-268.08947108,9.088e-05,2]